[Event "Titled Tuesday Blitz May 24 Early 2022"]
[White "Ajay Krishna, S"]
[Black "Nugumanov, Bakhtiyar"]
[WhiteFideId "5096430"]
[BlackFideId "13701797"]
[WhiteElo "2247"]
[BlackElo "2262"]
[Result "1-0"]
[Round "05"]
[TimeControl "180+1"]
[Date "2022.05.25"]
[WhiteClock "0:00:54"]
[BlackClock "0:01:20"]

1. d4 {[%clk 0:02:54]}  d5 {[%clk 0:02:59]} 2. c4 {[%clk 0:02:53]}  e6 {[%clk 0:03:00]} 3. Nf3 {[%clk 0:02:49]}  Nf6 {[%clk 0:03:00]} 4. g3 {[%clk 0:02:44]}  Be7 {[%clk 0:02:59]} 5. Bg2 {[%clk 0:02:44]}  O-O {[%clk 0:03:00]} 6. O-O {[%clk 0:02:44]}  dxc4 {[%clk 0:03:00]} 7. Ne5 {[%clk 0:02:44]}  Nc6 {[%clk 0:03:00]} 8. Bxc6 {[%clk 0:02:44]}  bxc6 {[%clk 0:03:01]} 9. Nxc6 {[%clk 0:02:45]}  Qe8 {[%clk 0:02:57]} 10. Nxe7+ {[%clk 0:02:46]}  Qxe7 {[%clk 0:02:58]} 11. Qa4 {[%clk 0:02:45]}  c5 {[%clk 0:02:58]} 12. dxc5 {[%clk 0:02:33]}  Qxc5 {[%clk 0:02:59]} 13. Be3 {[%clk 0:02:33]}  Qc7 {[%clk 0:02:46]} 14. Nd2 {[%clk 0:02:25]}  c3 {[%clk 0:02:45]} 15. Rac1 {[%clk 0:02:07]}  Nd5 {[%clk 0:02:45]} 16. Bd4 {[%clk 0:02:05]}  Bd7 {[%clk 0:02:37]} 17. Qa3 {[%clk 0:01:58]}  c2 {[%clk 0:02:21]} 18. Bc5 {[%clk 0:01:45]}  Rfc8 {[%clk 0:02:16]} 19. Rxc2 {[%clk 0:01:42]}  Qe5 {[%clk 0:02:09]} 20. Nf3 {[%clk 0:01:34]}  Qh5 {[%clk 0:02:08]} 21. Rfc1 {[%clk 0:01:31]}  e5 {[%clk 0:02:03]} 22. Bd6 {[%clk 0:01:21]}  e4 {[%clk 0:01:34]} 23. Rxc8+ {[%clk 0:01:20]}  Bxc8 {[%clk 0:01:35]} 24. Nd4 {[%clk 0:01:07]}  e3 {[%clk 0:01:34]} 25. f3 {[%clk 0:01:05]}  Qg6 {[%clk 0:01:20]} 26. Qxa7 {[%clk 0:00:54]} 1-0


[Site "https://www.chess.com"]

[Event "Titled Tuesday Blitz May 24 Early 2022"]
[White "Aradhya, Garg"]
[Black "Fernandez Barrera, Victor"]
[WhiteFideId "25006746"]
[BlackFideId "2261529"]
[WhiteElo "2718"]
[BlackElo "2582"]
[Result "1-0"]
[Round "05"]
[TimeControl "180+1"]
[Date "2022.05.25"]
[WhiteClock "0:00:17"]
[BlackClock "0:00:06"]

1. d4 {[%clk 0:03:00]}  Nf6 {[%clk 0:02:59]} 2. Nf3 {[%clk 0:03:01]}  e6 {[%clk 0:02:59]} 3. e3 {[%clk 0:02:57]}  b6 {[%clk 0:02:59]} 4. Bd3 {[%clk 0:02:57]}  c5 {[%clk 0:02:59]} 5. O-O {[%clk 0:02:58]}  Bb7 {[%clk 0:02:59]} 6. b3 {[%clk 0:02:56]}  Be7 {[%clk 0:03:00]} 7. Bb2 {[%clk 0:02:56]}  O-O {[%clk 0:02:53]} 8. c4 {[%clk 0:02:49]}  cxd4 {[%clk 0:02:47]} 9. exd4 {[%clk 0:02:47]}  d6 {[%clk 0:02:42]} 10. Re1 {[%clk 0:02:46]}  Nbd7 {[%clk 0:02:34]} 11. Nc3 {[%clk 0:02:45]}  a6 {[%clk 0:02:32]} 12. Qe2 {[%clk 0:02:43]}  Rc8 {[%clk 0:02:28]} 13. d5 {[%clk 0:02:37]}  e5 {[%clk 0:02:25]} 14. Ng5 {[%clk 0:02:37]}  Nc5 {[%clk 0:02:19]} 15. Bc2 {[%clk 0:02:36]}  h6 {[%clk 0:02:15]} 16. Nge4 {[%clk 0:02:36]}  Nfxe4 {[%clk 0:02:13]} 17. Nxe4 {[%clk 0:02:35]}  f5 {[%clk 0:02:13]} 18. Ng3 {[%clk 0:02:26]}  f4 {[%clk 0:01:44]} 19. Nf5 {[%clk 0:02:24]}  a5 {[%clk 0:01:42]} 20. Qg4 {[%clk 0:02:22]}  Bg5 {[%clk 0:01:25]} 21. h4 {[%clk 0:02:20]}  Rxf5 {[%clk 0:01:25]} 22. Bxf5 {[%clk 0:02:16]}  Bxh4 {[%clk 0:01:23]} 23. Bxc8 {[%clk 0:02:11]}  Bxc8 {[%clk 0:01:23]} 24. Qg6 {[%clk 0:02:12]}  Bf6 {[%clk 0:01:06]} 25. Ba3 {[%clk 0:02:05]}  Bd7 {[%clk 0:01:03]} 26. Bxc5 {[%clk 0:02:05]}  bxc5 {[%clk 0:01:04]} 27. Qe4 {[%clk 0:02:02]}  Bh4 {[%clk 0:00:59]} 28. Qg6 {[%clk 0:02:00]}  Bf6 {[%clk 0:00:58]} 29. Kf1 {[%clk 0:01:55]}  Be8 {[%clk 0:00:57]} 30. Qf5 {[%clk 0:01:53]}  Bd7 {[%clk 0:00:57]} 31. Qe4 {[%clk 0:01:53]}  Bh4 {[%clk 0:00:57]} 32. Ke2 {[%clk 0:01:52]}  Qf6 {[%clk 0:00:57]} 33. Qc2 {[%clk 0:01:45]}  Bg4+ {[%clk 0:00:55]} 34. f3 {[%clk 0:01:44]}  Bf5 {[%clk 0:00:54]} 35. Qc3 {[%clk 0:01:45]}  Qg6 {[%clk 0:00:50]} 36. Rg1 {[%clk 0:01:43]}  Qg3 {[%clk 0:00:48]} 37. Qe1 {[%clk 0:01:36]}  Qg5 {[%clk 0:00:46]} 38. Qxa5 {[%clk 0:01:35]}  Qg3 {[%clk 0:00:45]} 39. Qe1 {[%clk 0:01:27]}  Qg5 {[%clk 0:00:45]} 40. Qd2 {[%clk 0:01:27]}  e4 {[%clk 0:00:43]} 41. a4 {[%clk 0:01:22]}  e3 {[%clk 0:00:41]} 42. Qc3 {[%clk 0:01:21]}  Qg3 {[%clk 0:00:41]} 43. Qe1 {[%clk 0:01:21]}  Qh2 {[%clk 0:00:39]} 44. Qf1 {[%clk 0:01:19]}  Bf6 {[%clk 0:00:35]} 45. a5 {[%clk 0:01:17]}  Bxa1 {[%clk 0:00:21]} 46. a6 {[%clk 0:01:15]}  Bc8 {[%clk 0:00:18]} 47. a7 {[%clk 0:01:15]}  Bb7 {[%clk 0:00:18]} 48. Qxa1 {[%clk 0:01:15]}  Kh7 {[%clk 0:00:18]} 49. Qf1 {[%clk 0:00:50]}  Qg3 {[%clk 0:00:15]} 50. Qb1+ {[%clk 0:00:50]}  Kh8 {[%clk 0:00:14]} 51. Qe1 {[%clk 0:00:49]}  Qg6 {[%clk 0:00:14]} 52. Qd1 {[%clk 0:00:41]}  Qg3 {[%clk 0:00:13]} 53. Kd3 {[%clk 0:00:38]}  Qg6+ {[%clk 0:00:13]} 54. Kc3 {[%clk 0:00:37]}  Qf6+ {[%clk 0:00:10]} 55. Kc2 {[%clk 0:00:37]}  Qf5+ {[%clk 0:00:08]} 56. Qd3 {[%clk 0:00:37]}  Qg5 {[%clk 0:00:08]} 57. Qe4 {[%clk 0:00:36]}  Qg3 {[%clk 0:00:07]} 58. Qe8+ {[%clk 0:00:16]}  Kh7 {[%clk 0:00:07]} 59. Qe4+ {[%clk 0:00:16]}  Kh8 {[%clk 0:00:07]} 60. Ra1 {[%clk 0:00:16]}  Qxg2+ {[%clk 0:00:07]} 61. Kb1 {[%clk 0:00:15]}  Qf1+ {[%clk 0:00:06]} 62. Kb2 {[%clk 0:00:15]}  Qe2+ {[%clk 0:00:07]} 63. Kb1 {[%clk 0:00:15]}  Qd1+ {[%clk 0:00:07]} 64. Kb2 {[%clk 0:00:16]}  Qd2+ {[%clk 0:00:07]} 65. Qc2 {[%clk 0:00:15]}  Qd4+ {[%clk 0:00:07]} 66. Qc3 {[%clk 0:00:15]}  Ba8 {[%clk 0:00:07]} 67. Qxd4 {[%clk 0:00:15]}  cxd4 {[%clk 0:00:08]} 68. Kc2 {[%clk 0:00:16]}  Kg8 {[%clk 0:00:07]} 69. Kd3 {[%clk 0:00:16]}  Kf8 {[%clk 0:00:08]} 70. Kxd4 {[%clk 0:00:17]}  g5 {[%clk 0:00:07]} 71. Ke4 {[%clk 0:00:18]}  Kg7 {[%clk 0:00:08]} 72. Kf5 {[%clk 0:00:18]}  Bb7 {[%clk 0:00:05]} 73. a8=Q {[%clk 0:00:17]}  Bxa8 {[%clk 0:00:06]} 74. Ra7+ {[%clk 0:00:17]} 1-0


[Site "https://www.chess.com"]

[Event "Titled Tuesday Blitz May 24 Early 2022"]
[White "Avramidou, Anastasia"]
[Black "Schut, Han"]
[WhiteFideId "4239873"]
[BlackFideId "1005561"]
[WhiteElo "2183"]
[BlackElo "2057"]
[Result "1-0"]
[Round "05"]
[TimeControl "180+1"]
[Date "2022.05.25"]
[WhiteClock "0:00:14"]
[BlackClock "0:00:08"]

1. Nf3 {[%clk 0:02:59]}  Nf6 {[%clk 0:02:59]} 2. d4 {[%clk 0:02:59]}  g6 {[%clk 0:02:59]} 3. c4 {[%clk 0:03:00]}  Bg7 {[%clk 0:02:58]} 4. Nc3 {[%clk 0:03:00]}  d5 {[%clk 0:02:59]} 5. h4 {[%clk 0:02:59]}  c5 {[%clk 0:02:53]} 6. h5 {[%clk 0:02:58]}  cxd4 {[%clk 0:02:52]} 7. Nxd4 {[%clk 0:02:54]}  e5 {[%clk 0:02:49]} 8. h6 {[%clk 0:02:47]}  Bf8 {[%clk 0:02:40]} 9. Nf3 {[%clk 0:02:43]}  d4 {[%clk 0:02:39]} 10. Bg5 {[%clk 0:02:16]}  Be7 {[%clk 0:02:12]} 11. Bxf6 {[%clk 0:02:13]}  Bxf6 {[%clk 0:02:12]} 12. Nd5 {[%clk 0:02:13]}  Be6 {[%clk 0:02:04]} 13. Nxf6+ {[%clk 0:02:07]}  Qxf6 {[%clk 0:02:03]} 14. Qb3 {[%clk 0:01:57]}  Nd7 {[%clk 0:01:43]} 15. e3 {[%clk 0:01:46]}  O-O {[%clk 0:01:33]} 16. exd4 {[%clk 0:01:18]}  exd4 {[%clk 0:01:34]} 17. Qd3 {[%clk 0:01:16]}  Rfe8 {[%clk 0:01:20]} 18. O-O-O {[%clk 0:01:08]}  b5 {[%clk 0:00:55]} 19. Qxd4 {[%clk 0:01:03]}  bxc4 {[%clk 0:00:49]} 20. Qxf6 {[%clk 0:00:55]}  Nxf6 {[%clk 0:00:50]} 21. Rh4 {[%clk 0:00:44]}  Rac8 {[%clk 0:00:49]} 22. Nd4 {[%clk 0:00:32]}  Bd5 {[%clk 0:00:45]} 23. Nb5 {[%clk 0:00:27]}  Re6 {[%clk 0:00:21]} 24. Nc3 {[%clk 0:00:26]}  Rec6 {[%clk 0:00:17]} 25. Nxd5 {[%clk 0:00:24]}  Nxd5 {[%clk 0:00:18]} 26. Rxd5 {[%clk 0:00:24]}  c3 {[%clk 0:00:18]} 27. b3 {[%clk 0:00:21]}  Re6 {[%clk 0:00:18]} 28. Bc4 {[%clk 0:00:18]}  Re1+ {[%clk 0:00:13]} 29. Kc2 {[%clk 0:00:18]}  Ra1 {[%clk 0:00:12]} 30. Kxc3 {[%clk 0:00:16]}  Rxa2 {[%clk 0:00:12]} 31. Rf4 {[%clk 0:00:16]}  Kf8 {[%clk 0:00:07]} 32. Rd7 {[%clk 0:00:15]}  f5 {[%clk 0:00:07]} 33. Rxh7 {[%clk 0:00:14]}  Ke8 {[%clk 0:00:06]} 34. Rh8+ {[%clk 0:00:14]}  Kd7 {[%clk 0:00:07]} 35. Rd4+ {[%clk 0:00:14]}  Kc7 {[%clk 0:00:07]} 36. Rxc8+ {[%clk 0:00:14]}  Kxc8 {[%clk 0:00:08]} 37. h7 {[%clk 0:00:14]} 1-0


[Site "https://www.chess.com"]

[Event "Titled Tuesday Blitz May 24 Early 2022"]
[White "Bacrot, Etienne"]
[Black "Samunenkov, Ihor"]
[WhiteFideId "605506"]
[BlackFideId "14187086"]
[WhiteElo "2673"]
[BlackElo "2409"]
[Result "1-0"]
[Round "05"]
[TimeControl "180+1"]
[Date "2022.05.24"]
[WhiteClock "0:00:40"]
[BlackClock "0:00:03"]

1. e4 {[%clk 0:03:00]}  c6 {[%clk 0:02:59]} 2. Nf3 {[%clk 0:03:00]}  d5 {[%clk 0:02:59]} 3. Nc3 {[%clk 0:03:01]}  dxe4 {[%clk 0:02:58]} 4. Nxe4 {[%clk 0:03:01]}  Nf6 {[%clk 0:02:59]} 5. Qe2 {[%clk 0:03:01]}  Nxe4 {[%clk 0:02:59]} 6. Qxe4 {[%clk 0:03:01]}  Nd7 {[%clk 0:03:00]} 7. Bc4 {[%clk 0:03:00]}  Nf6 {[%clk 0:03:00]} 8. Qe2 {[%clk 0:03:01]}  Bf5 {[%clk 0:02:57]} 9. d3 {[%clk 0:02:50]}  e6 {[%clk 0:02:54]} 10. Bd2 {[%clk 0:02:44]}  Be7 {[%clk 0:02:51]} 11. h3 {[%clk 0:02:44]}  h6 {[%clk 0:02:49]} 12. Ne5 {[%clk 0:02:42]}  Qc7 {[%clk 0:02:13]} 13. g4 {[%clk 0:02:37]}  Bh7 {[%clk 0:02:12]} 14. O-O-O {[%clk 0:02:28]}  b5 {[%clk 0:01:52]} 15. Bb3 {[%clk 0:02:26]}  Nd5 {[%clk 0:01:52]} 16. f4 {[%clk 0:02:21]}  a5 {[%clk 0:01:48]} 17. Rde1 {[%clk 0:02:10]}  Bd6 {[%clk 0:01:36]} 18. f5 {[%clk 0:02:06]}  a4 {[%clk 0:00:54]} 19. Bxd5 {[%clk 0:02:06]}  cxd5 {[%clk 0:00:55]} 20. fxe6 {[%clk 0:02:06]}  fxe6 {[%clk 0:00:55]} 21. Ng6 {[%clk 0:01:59]}  Bxg6 {[%clk 0:00:35]} 22. Qxe6+ {[%clk 0:01:58]}  Kf8 {[%clk 0:00:36]} 23. Qxg6 {[%clk 0:01:49]}  Rc8 {[%clk 0:00:36]} 24. Rhf1+ {[%clk 0:01:47]}  Kg8 {[%clk 0:00:36]} 25. c3 {[%clk 0:01:28]}  a3 {[%clk 0:00:34]} 26. Qe6+ {[%clk 0:01:18]}  Kh7 {[%clk 0:00:33]} 27. Qf5+ {[%clk 0:01:17]}  Kg8 {[%clk 0:00:33]} 28. Qxd5+ {[%clk 0:01:17]}  Kh7 {[%clk 0:00:33]} 29. Rf7 {[%clk 0:00:58]}  axb2+ {[%clk 0:00:13]} 30. Kxb2 {[%clk 0:00:55]}  Qc5 {[%clk 0:00:09]} 31. Qxc5 {[%clk 0:00:50]}  Rxc5 {[%clk 0:00:10]} 32. Re6 {[%clk 0:00:45]}  Rd8 {[%clk 0:00:07]} 33. d4 {[%clk 0:00:44]}  Rcc8 {[%clk 0:00:04]} 34. Bxh6 {[%clk 0:00:42]}  Bf8 {[%clk 0:00:03]} 35. Bg5 {[%clk 0:00:40]}  Rd5 {[%clk 0:00:02]} 36. Be7 {[%clk 0:00:40]}  Kg8 {[%clk 0:00:02]} 37. Rxf8+ {[%clk 0:00:40]}  Rxf8 {[%clk 0:00:02]} 38. Bxf8 {[%clk 0:00:40]}  Kxf8 {[%clk 0:00:03]} 39. Re5 {[%clk 0:00:40]} 1-0


[Site "https://www.chess.com"]

[Event "Titled Tuesday Blitz May 24 Early 2022"]
[White "Balint, Vilmos"]
[Black "Ambartsumova, Karina"]
[WhiteFideId "718050"]
[BlackFideId "4166299"]
[WhiteElo "2059"]
[BlackElo "2262"]
[Result "1-0"]
[Round "05"]
[TimeControl "180+1"]
[Date "2022.05.25"]
[WhiteClock "0:01:19"]
[BlackClock "0:00:17"]

1. e4 {[%clk 0:02:43]}  c5 {[%clk 0:02:59]} 2. Nf3 {[%clk 0:02:41]}  e6 {[%clk 0:02:59]} 3. Be2 {[%clk 0:02:32]}  Nc6 {[%clk 0:02:57]} 4. O-O {[%clk 0:02:31]}  Nf6 {[%clk 0:02:56]} 5. Nc3 {[%clk 0:02:28]}  Qc7 {[%clk 0:02:49]} 6. Re1 {[%clk 0:02:29]}  a6 {[%clk 0:02:45]} 7. d4 {[%clk 0:02:29]}  cxd4 {[%clk 0:02:45]} 8. Nxd4 {[%clk 0:02:29]}  Nxd4 {[%clk 0:02:38]} 9. Qxd4 {[%clk 0:02:29]}  Bc5 {[%clk 0:02:39]} 10. Qd3 {[%clk 0:02:27]}  d6 {[%clk 0:02:36]} 11. Be3 {[%clk 0:02:27]}  O-O {[%clk 0:02:35]} 12. Rad1 {[%clk 0:02:26]}  Bxe3 {[%clk 0:02:31]} 13. Qxe3 {[%clk 0:02:26]}  b5 {[%clk 0:02:29]} 14. a3 {[%clk 0:02:26]}  Bb7 {[%clk 0:02:28]} 15. Rd2 {[%clk 0:02:26]}  Rfd8 {[%clk 0:02:24]} 16. Red1 {[%clk 0:02:26]}  d5 {[%clk 0:02:23]} 17. exd5 {[%clk 0:02:24]}  Nxd5 {[%clk 0:02:18]} 18. Nxd5 {[%clk 0:02:25]}  Bxd5 {[%clk 0:02:04]} 19. Bf3 {[%clk 0:02:25]}  Bxf3 {[%clk 0:02:01]} 20. Qxf3 {[%clk 0:02:25]}  h6 {[%clk 0:01:54]} 21. Rd7 {[%clk 0:01:47]}  Rxd7 {[%clk 0:01:42]} 22. Qxa8+ {[%clk 0:01:47]}  Kh7 {[%clk 0:01:41]} 23. Qe4+ {[%clk 0:01:46]}  g6 {[%clk 0:01:40]} 24. Rxd7 {[%clk 0:01:41]}  Qxd7 {[%clk 0:01:41]} 25. g3 {[%clk 0:01:41]}  h5 {[%clk 0:01:36]} 26. h4 {[%clk 0:01:42]}  Qd1+ {[%clk 0:01:29]} 27. Kg2 {[%clk 0:01:42]}  Qd7 {[%clk 0:01:24]} 28. c3 {[%clk 0:01:42]}  Kg7 {[%clk 0:01:22]} 29. a4 {[%clk 0:01:42]}  bxa4 {[%clk 0:01:20]} 30. Qe5+ {[%clk 0:01:42]}  Kh7 {[%clk 0:01:20]} 31. Qf4 {[%clk 0:01:36]}  Qb7+ {[%clk 0:01:17]} 32. Kh2 {[%clk 0:01:36]}  Qd7 {[%clk 0:01:13]} 33. c4 {[%clk 0:01:35]}  Kg7 {[%clk 0:01:10]} 34. c5 {[%clk 0:01:35]}  Qd5 {[%clk 0:00:46]} 35. Qc1 {[%clk 0:01:29]}  Qc6 {[%clk 0:00:45]} 36. Qc3+ {[%clk 0:01:29]}  Kg8 {[%clk 0:00:40]} 37. Qc4 {[%clk 0:01:27]}  Kf8 {[%clk 0:00:38]} 38. Qd4 {[%clk 0:01:27]}  Ke7 {[%clk 0:00:38]} 39. Qe5 {[%clk 0:01:22]}  f6 {[%clk 0:00:36]} 40. Qd4 {[%clk 0:01:22]}  Qd7 {[%clk 0:00:28]} 41. Qe4 {[%clk 0:01:20]}  Qd5 {[%clk 0:00:21]} 42. Qxg6 {[%clk 0:01:19]}  Qxc5 {[%clk 0:00:21]} 43. Qg7+ {[%clk 0:01:19]}  Kd6 {[%clk 0:00:21]} 44. Qxf6 {[%clk 0:01:19]}  a3 {[%clk 0:00:16]} 45. bxa3 {[%clk 0:01:19]}  Qxa3 {[%clk 0:00:17]} 46. Qf8+ {[%clk 0:01:19]} 1-0


[Site "https://www.chess.com"]

[Event "Titled Tuesday Blitz May 24 Early 2022"]
[White "Bas Mas, Jose Joaquin"]
[Black "Melikyan, Gnel"]
[WhiteFideId "22219064"]
[BlackFideId "54109990"]
[WhiteElo "2233"]
[BlackElo "1772"]
[Result "0-1"]
[Round "05"]
[TimeControl "180+1"]
[Date "2022.05.25"]
[WhiteClock "0:01:17"]
[BlackClock "0:02:04"]

1. e4 {[%clk 0:02:43]}  c5 {[%clk 0:02:59]} 2. Nc3 {[%clk 0:02:42]}  Nc6 {[%clk 0:03:00]} 3. Bb5 {[%clk 0:02:42]}  g6 {[%clk 0:02:59]} 4. Bxc6 {[%clk 0:02:42]}  dxc6 {[%clk 0:02:59]} 5. d3 {[%clk 0:02:42]}  Bg7 {[%clk 0:02:59]} 6. f4 {[%clk 0:02:43]}  Nf6 {[%clk 0:02:59]} 7. Nf3 {[%clk 0:02:43]}  O-O {[%clk 0:02:59]} 8. O-O {[%clk 0:02:43]}  b6 {[%clk 0:02:59]} 9. Qe1 {[%clk 0:02:43]}  Bg4 {[%clk 0:02:54]} 10. Qh4 {[%clk 0:02:42]}  e6 {[%clk 0:02:50]} 11. f5 {[%clk 0:02:29]}  exf5 {[%clk 0:02:46]} 12. Bg5 {[%clk 0:02:28]}  Bxf3 {[%clk 0:02:26]} 13. Rxf3 {[%clk 0:02:27]}  Qd4+ {[%clk 0:02:25]} 14. Kh1 {[%clk 0:02:20]}  Ng4 {[%clk 0:02:19]} 15. h3 {[%clk 0:02:12]}  Ne5 {[%clk 0:02:17]} 16. Rf2 {[%clk 0:01:55]}  f6 {[%clk 0:02:10]} 17. Bd2 {[%clk 0:01:25]}  g5 {[%clk 0:02:09]} 18. Qg3 {[%clk 0:01:23]}  f4 {[%clk 0:02:09]} 19. Bxf4 {[%clk 0:01:23]}  gxf4 {[%clk 0:02:09]} 20. Rxf4 {[%clk 0:01:22]}  Kh8 {[%clk 0:02:09]} 21. Raf1 {[%clk 0:01:20]}  Rg8 {[%clk 0:02:06]} 22. Qh4 {[%clk 0:01:17]}  Ng6 {[%clk 0:02:04]} 0-1


[Site "https://www.chess.com"]

[Event "Titled Tuesday Blitz May 24 Early 2022"]
[White "Bocharov, Dmitry"]
[Black "Oparin, Grigoriy"]
[WhiteFideId "4138716"]
[BlackFideId "24125890"]
[WhiteElo "2541"]
[BlackElo "2665"]
[Result "1-0"]
[Round "05"]
[TimeControl "180+1"]
[Date "2022.05.24"]
[WhiteClock "0:00:08"]
[BlackClock "0:00:02"]

1. d4 {[%clk 0:03:00]}  Nf6 {[%clk 0:02:59]} 2. c4 {[%clk 0:03:00]}  e6 {[%clk 0:03:00]} 3. Nf3 {[%clk 0:03:00]}  b6 {[%clk 0:03:00]} 4. g3 {[%clk 0:03:00]}  Bb7 {[%clk 0:03:01]} 5. Bg2 {[%clk 0:03:00]}  Bb4+ {[%clk 0:03:01]} 6. Bd2 {[%clk 0:02:59]}  a5 {[%clk 0:03:02]} 7. O-O {[%clk 0:02:58]}  O-O {[%clk 0:03:02]} 8. Bf4 {[%clk 0:02:57]}  Be7 {[%clk 0:02:51]} 9. Qc2 {[%clk 0:02:56]}  Na6 {[%clk 0:02:51]} 10. Nc3 {[%clk 0:02:55]}  Nb4 {[%clk 0:02:50]} 11. Qb1 {[%clk 0:02:53]}  d5 {[%clk 0:02:43]} 12. a3 {[%clk 0:02:50]}  Na6 {[%clk 0:02:43]} 13. Ne5 {[%clk 0:02:47]}  Qc8 {[%clk 0:02:35]} 14. Rc1 {[%clk 0:02:34]}  Rd8 {[%clk 0:02:11]} 15. cxd5 {[%clk 0:02:26]}  exd5 {[%clk 0:02:11]} 16. Nd3 {[%clk 0:02:12]}  c5 {[%clk 0:02:03]} 17. Be5 {[%clk 0:01:46]}  Qd7 {[%clk 0:01:55]} 18. Nf4 {[%clk 0:01:41]}  Nc7 {[%clk 0:01:37]} 19. Na4 {[%clk 0:01:28]}  Qc6 {[%clk 0:01:24]} 20. dxc5 {[%clk 0:00:56]}  bxc5 {[%clk 0:01:24]} 21. Qc2 {[%clk 0:00:56]}  Na6 {[%clk 0:01:04]} 22. Nc3 {[%clk 0:00:56]}  Nc7 {[%clk 0:00:58]} 23. Rd1 {[%clk 0:00:56]}  Rac8 {[%clk 0:00:33]} 24. Rac1 {[%clk 0:00:44]}  Qe8 {[%clk 0:00:25]} 25. Bxf6 {[%clk 0:00:39]}  Bxf6 {[%clk 0:00:25]} 26. Ncxd5 {[%clk 0:00:37]}  Nxd5 {[%clk 0:00:23]} 27. Nxd5 {[%clk 0:00:37]}  Bxd5 {[%clk 0:00:19]} 28. Rxd5 {[%clk 0:00:32]}  c4 {[%clk 0:00:12]} 29. e3 {[%clk 0:00:26]}  g6 {[%clk 0:00:10]} 30. h4 {[%clk 0:00:24]}  c3 {[%clk 0:00:09]} 31. b4 {[%clk 0:00:20]}  axb4 {[%clk 0:00:08]} 32. axb4 {[%clk 0:00:21]}  Rxd5 {[%clk 0:00:07]} 33. Bxd5 {[%clk 0:00:21]}  Qd7 {[%clk 0:00:07]} 34. Bf3 {[%clk 0:00:16]}  Rb8 {[%clk 0:00:06]} 35. Rb1 {[%clk 0:00:17]}  Kg7 {[%clk 0:00:06]} 36. Be4 {[%clk 0:00:15]}  h5 {[%clk 0:00:06]} 37. Bd3 {[%clk 0:00:14]}  Rd8 {[%clk 0:00:06]} 38. Bf1 {[%clk 0:00:14]}  Qc7 {[%clk 0:00:06]} 39. b5 {[%clk 0:00:14]}  Rd2 {[%clk 0:00:06]} 40. Qe4 {[%clk 0:00:12]}  Qb6 {[%clk 0:00:06]} 41. Qc6 {[%clk 0:00:09]}  Bd8 {[%clk 0:00:02]} 42. Qxc3+ {[%clk 0:00:07]}  Bf6 {[%clk 0:00:02]} 43. Qxd2 {[%clk 0:00:08]} 1-0


[Site "https://www.chess.com"]

[Event "Titled Tuesday Blitz May 24 Early 2022"]
[White "Boyer, Mahel"]
[Black "Garv Gaur"]
[WhiteFideId "45102422"]
[BlackFideId "45030839"]
[WhiteElo "2784"]
[BlackElo "2519"]
[Result "0-1"]
[Round "05"]
[TimeControl "180+1"]
[Date "2022.05.25"]
[WhiteClock "0:00:10"]
[BlackClock "0:00:24"]

1. e4 {[%clk 0:03:00]}  c6 {[%clk 0:03:00]} 2. d4 {[%clk 0:03:01]}  d5 {[%clk 0:03:01]} 3. Nd2 {[%clk 0:03:01]}  dxe4 {[%clk 0:03:01]} 4. Nxe4 {[%clk 0:03:02]}  Bf5 {[%clk 0:03:01]} 5. Ng3 {[%clk 0:02:58]}  Bg6 {[%clk 0:03:01]} 6. Nh3 {[%clk 0:02:59]}  Nf6 {[%clk 0:02:58]} 7. Nf4 {[%clk 0:02:59]}  e5 {[%clk 0:02:58]} 8. dxe5 {[%clk 0:02:58]}  Qxd1+ {[%clk 0:02:58]} 9. Kxd1 {[%clk 0:02:58]}  Ng4 {[%clk 0:02:59]} 10. Ke1 {[%clk 0:02:55]}  Bxc2 {[%clk 0:02:49]} 11. Bd3 {[%clk 0:02:55]}  Bxd3 {[%clk 0:02:26]} 12. Nxd3 {[%clk 0:02:56]}  Nd7 {[%clk 0:02:21]} 13. f4 {[%clk 0:02:30]}  Nc5 {[%clk 0:02:19]} 14. Nxc5 {[%clk 0:02:24]}  Bxc5 {[%clk 0:02:20]} 15. Ne4 {[%clk 0:02:24]}  Bb4+ {[%clk 0:02:17]} 16. Ke2 {[%clk 0:02:23]}  O-O-O {[%clk 0:02:12]} 17. h3 {[%clk 0:02:20]}  Nh6 {[%clk 0:02:11]} 18. g4 {[%clk 0:02:16]}  Rhe8 {[%clk 0:02:03]} 19. a3 {[%clk 0:02:01]}  Bf8 {[%clk 0:02:02]} 20. Be3 {[%clk 0:02:01]}  f5 {[%clk 0:01:59]} 21. Nf2 {[%clk 0:02:00]}  Kb8 {[%clk 0:01:55]} 22. Rhd1 {[%clk 0:01:54]}  Be7 {[%clk 0:01:49]} 23. Kf3 {[%clk 0:01:43]}  Bh4 {[%clk 0:01:46]} 24. Nd3 {[%clk 0:01:43]}  g5 {[%clk 0:01:37]} 25. fxg5 {[%clk 0:01:38]}  fxg4+ {[%clk 0:01:37]} 26. hxg4 {[%clk 0:01:38]}  Rf8+ {[%clk 0:01:35]} 27. Ke4 {[%clk 0:01:38]}  Nxg4 {[%clk 0:01:33]} 28. Bf4 {[%clk 0:01:38]}  Kc8 {[%clk 0:01:20]} 29. Rd2 {[%clk 0:01:15]}  Rxd3 {[%clk 0:01:16]} 30. Kxd3 {[%clk 0:01:05]}  Rxf4 {[%clk 0:01:15]} 31. Re2 {[%clk 0:00:58]}  Bxg5 {[%clk 0:01:10]} 32. e6 {[%clk 0:00:54]}  Kd8 {[%clk 0:01:07]} 33. Rae1 {[%clk 0:00:47]}  Ke7 {[%clk 0:01:02]} 34. Kc3 {[%clk 0:00:48]}  Bf6+ {[%clk 0:01:01]} 35. Kc2 {[%clk 0:00:48]}  Ne5 {[%clk 0:00:59]} 36. Rxe5 {[%clk 0:00:46]}  Bxe5 {[%clk 0:01:00]} 37. Rxe5 {[%clk 0:00:47]}  Rf6 {[%clk 0:01:00]} 38. Rg5 {[%clk 0:00:41]}  Kxe6 {[%clk 0:00:58]} 39. Rg8 {[%clk 0:00:39]}  Rf7 {[%clk 0:00:56]} 40. Kd3 {[%clk 0:00:37]}  Kf6 {[%clk 0:00:55]} 41. Kd4 {[%clk 0:00:36]}  Rg7 {[%clk 0:00:53]} 42. Rh8 {[%clk 0:00:34]}  Kg5 {[%clk 0:00:53]} 43. Ke5 {[%clk 0:00:22]}  h5 {[%clk 0:00:51]} 44. b4 {[%clk 0:00:23]}  h4 {[%clk 0:00:48]} 45. a4 {[%clk 0:00:23]}  Kg4 {[%clk 0:00:32]} 46. Kf6 {[%clk 0:00:21]}  Rd7 {[%clk 0:00:32]} 47. Ke6 {[%clk 0:00:20]}  Rd4 {[%clk 0:00:31]} 48. Rg8+ {[%clk 0:00:10]}  Kf3 {[%clk 0:00:31]} 49. Rf8+ {[%clk 0:00:10]}  Rf4 {[%clk 0:00:30]} 50. Rh8 {[%clk 0:00:07]}  Rxb4 {[%clk 0:00:30]} 51. a5 {[%clk 0:00:08]}  Kg3 {[%clk 0:00:27]} 52. Rg8+ {[%clk 0:00:07]}  Rg4 {[%clk 0:00:27]} 53. Rh8 {[%clk 0:00:08]}  h3 {[%clk 0:00:27]} 54. Rh7 {[%clk 0:00:08]}  h2 {[%clk 0:00:25]} 55. Kd6 {[%clk 0:00:08]}  Rh4 {[%clk 0:00:26]} 56. Rg7+ {[%clk 0:00:09]}  Kf2 {[%clk 0:00:25]} 57. Rf7+ {[%clk 0:00:10]}  Ke3 {[%clk 0:00:25]} 58. Re7+ {[%clk 0:00:10]}  Kd4 {[%clk 0:00:26]} 59. Rh7 {[%clk 0:00:11]}  Rxh7 {[%clk 0:00:25]} 60. a6 {[%clk 0:00:09]}  h1=Q {[%clk 0:00:24]} 61. axb7 {[%clk 0:00:10]}  Qd5# {[%clk 0:00:24]} 0-1


[Site "https://www.chess.com"]